Cogmind - Beta 16.1 @@@ ROGUE MODE // 2026.02.13 @ 15:48:02 Player: Megaknight51 Result: Destroyed by Y-45 Defender with Heavy Assault Rifle Performance ------------- Evolutions (1) 500 Regions Visited (3) 600 Robots Destroyed (39) 195 Value Destroyed (600) 600 Prototype IDs (0) 0 Alien Tech Used (0) 0 Bonus (0) 0 TOTAL SCORE: 1895 Bonus ------- None Cogmind --------- Core Integrity 0/400 Matter 300/300 Energy 98/100 System Corruption 0% Temperature Cool (9) Movement Core (50) Location -9/Materials Parts ------- > --- POWER (1) -------- (None) > --- PROPULSION (4) --- (None) > --- UTILITY (2) ------ Signal Interpreter > --- WEAPON (2) ------- (None) > --- INVENTORY (5) ---- Visual Processing Unit Sensor Array Improved Terrain Scanner Terrain Scan Processor Hacking Suite Peak State ------------ > --- POWER ------------ Light Ion Engine > --- PROPULSION ------- Flight Unit Flight Unit Flight Unit Flight Unit > --- UTILITY ---------- Small Storage Unit Signal Interpreter > --- WEAPON ----------- Small Laser Light Cannon > --- INVENTORY -------- Light Ion Engine Light Ion Engine Light Treads Visual Processing Unit Sensor Array Improved Terrain Scanner Terrain Scan Processor Mining Laser [Rating: 10] Favorites ----------- Power Light Ion Engine Engine Light Ion Engine Propulsion Flight Unit Treads Light Treads Leg Aluminum Leg Wheel Compact Wheel Flight Unit Flight Unit Utility Small Storage Unit Storage Small Storage Unit Processor Signal Interpreter Weapon Light Cannon Energy Gun Small Laser Ballistic Gun Light Assault Rifle Ballistic Cannon Light Cannon Build | -11 -10 -10 -9 ------- Run | Yrd Mat Min Mat Slots Evolved 2 | . . . 2 Power . | . . . . Propulsion 2 | . . . 2 Utility . | . . . . Weapon . | . . . . Parts Attached 34 | 8 7 7 12 Power 7 | 1 2 1 3 Engine 7 | 1 2 1 3 Core . | . . . . Reactor . | . . . . Propulsion 15 | 4 . 4 7 Treads 2 | 2 . . . Leg 2 | . . 2 . Wheel 2 | 2 . . . Hover . | . . . . Flight 9 | . . 2 7 Utility 3 | 1 . 1 1 Device . | . . . . Storage 2 | 1 . 1 . Processor 1 | . . . 1 Hackware . | . . . . Protection . | . . . . Artifact . | . . . . Weapon 9 | 2 5 1 1 Energy Gun 3 | 2 1 . . Energy Cannon . | . . . . Ballistic Gun 4 | . 3 . 1 Ballistic Cannon 2 | . 1 1 . Launcher . | . . . . Special Weapon . | . . . . Impact Weapon . | . . . . Slashing Weapon . | . . . . Piercing Weapon . | . . . . Special Melee Weapon . | . . . . Unidentified Prototypes . | . . . . Parts Lost 19 | . 1 2 16 Power 4 | . 1 . 3 Propulsion 10 | . . 1 9 Utility 1 | . . . 1 Weapon 4 | . . 1 3 Highest Loss Streak 7 | . 1 1 7 To Critical Strikes . | . . . . Average Backups 7 | 1 7 7 7 Power 1 | . 1 1 1 Propulsion 1 | . 2 2 . Utility 2 | . 1 2 4 Weapon 1 | . 2 1 . Tool/Special . | . . . . Unused Backups 9 | . . . 9 Power 1 | . . . 1 Propulsion 1 | . . . 1 Utility 6 | . . . 6 Weapon 1 | . . . 1 Tool/Special . | . . . . Average Slot Usage (%) 81 | . 84 84 69 Engine 12 | . 13 14 6 Treads 11 | . 28 . . Leg 4 | . . 11 . Flight 12 | . . 15 29 Storage 13 | . 14 14 10 Processor 2 | . . . 10 Energy Gun 5 | . 6 4 3 Ballistic Gun 6 | . 12 1 3 Ballistic Cannon 13 | . 9 21 5 Peak Build Rating 10 | 6 7 8 10 Average Rating 6 | 4 6 6 7 On Entrance 5 | . 6 7 7 Avg Prop Armor Cover (%) 7 | 7 . . . Naked Turns . | . . . . Heaviest Build 14 | 11 14 14 12 Greatest Support 40 | 40 40 20 16 Greatest Overweight (x) 2 | . . 1 2 Average Overweight (x) . | . . . . Largest Inventory Capacity 8 | 8 8 8 8 Average Capacity 7 | 7 8 8 7 Most Carried 8 | 3 8 8 8 Average Carried 7 | 1 7 7 7 Final Capacity 8 | 8 8 8 5 Final Carried 8 | 3 8 8 5 Class Distribution -------------------- 89% | Mutant 5% | Scavenger-Mutant Dominant Class ---------------- Mutant | -10/Materials Mutant | -10/Mines Mutant | -9/Materials Resources | -11 -10 -10 -9 ----------- Run | Yrd Mat Min Mat Matter Collected 936 | 276 195 228 237 Remotely . | . . . . Salvage Created 850 | 105 356 96 293 Parts 61 | 6 21 10 24 Haulers Intercepted . | . . . . Recyclers Shooed 6 | 1 1 . 4 Parts Field Recycled . | . . . . Retrieved Matter . | . . . . Parts Self-Destructed . | . . . . Prevented . | . . . . Parts Restored . | . . . . Kills | -11 -10 -10 -9 ------- Run | Yrd Mat Min Mat Combat Hostiles Destroyed 26 | . 11 5 10 Guns 11 | . 5 1 5 Cannons 15 | . 6 4 5 Classes Destroyed 10 | 2 3 1 4 Worker 1 | . . . 1 Builder 2 | . . 1 1 Tunneler 3 | 2 . 1 . Recycler 4 | 1 1 . 2 Mechanic 1 | . . . 1 Operator 1 | . . . 1 Watcher 1 | . 1 . . Swarmer 18 | . 6 3 9 Grunt 7 | . 5 2 . Sentry 1 | . . . 1 Best Kill Streak 7 | 3 3 2 7 Combat Bots Only 4 | . 3 2 4 Max Kills in Single Turn 2 | 1 1 1 2 Gunslinging . | . . . . Exploded . | . . . . Melee . | . . . . Uniques/NPCs Destroyed . | . . . . Combat | -11 -10 -10 -9 -------- Run | Yrd Mat Min Mat Hostile Shots Fired 299 | . 81 43 175 Missed 104 | . 22 11 71 Hits 195 | . 59 32 104 Projectile 195 | . 59 32 104 Critical Strikes 2 | . 1 . 1 Damage Taken 1946 | . 518 335 1093 Core 576 | . 70 106 400 Absorbed by Shields . | . . . . Core Remaining (%) 64 | 100 . 29 . Volleys Fired 126 | 8 34 29 55 Largest 2 | 2 2 2 2 Hottest 90 | 90 70 70 70 Shots Fired 223 | 16 68 57 82 Gun 132 | 16 48 21 47 Cannon 91 | . 20 36 35 Launcher . | . . . . Special . | . . . . Kinetic 154 | . 54 45 55 Thermal 66 | 16 11 12 27 Explosive . | . . . . Electromagnetic 3 | . 3 . . Robot Hit Streak 13 | 2 8 6 13 Robot Miss Streak 8 | 4 7 8 3 Penetration Max . | . . . . Secondary Targets . | . . . . Shots Hit Robots 124 | 7 37 30 50 Core Hits 52 | 4 18 9 21 Critical Kills . | . . . . Critical Parts Destroyed 1 | . . . 1 Critical Strikes 4 | . 1 1 2 Burn 1 | . 1 . . Destroy 1 | . . . 1 Blast 2 | . . 1 1 Melee Attacks . | . . . . Impact . | . . . . Slashing . | . . . . Piercing . | . . . . Sneak Attacks . | . . . . Combat Hostiles . | . . . . Follow-up Attacks . | . . . . Damage Inflicted 1746 | 81 497 453 715 Guns 694 | 81 233 91 289 Cannons 1016 | . 261 351 404 Explosions . | . . . . Melee . | . . . . Ramming 36 | . 3 11 22 Kinetic 1308 | . 417 389 502 Thermal 387 | 81 62 53 191 Explosive . | . . . . Electromagnetic 15 | . 15 . . Impact . | . . . . Slashing . | . . . . Piercing . | . . . . Highest Corruption . | . . . . Average Corruption . | . . . . Corruption Purged . | . . . . Corruption Blocked . | . . . . Overload Shots . | . . . . Overflow Damage 24 | . 24 . . Projectiles 24 | . 24 . . Explosions . | . . . . Melee . | . . . . Knockbacks 14 | . 4 5 5 Impact 1 | . . 1 . Kinetic 13 | . 4 4 5 Secondary . | . . . . Self-Inflicted Damage 15 | . . 5 10 Shots . | . . . . Rammed 5 | . 1 1 3 Targets Rammed 5 | . 1 1 3 Kicked . | . . . . Crushed . | . . . . Highest Temperature 240 | 240 150 111 74 Average Temperature 42 | 122 36 34 28 Received Heat Transfer 459 | . 102 96 261 Effects 2 | 2 . . . Interference 2 | 2 . . . Siege Activations . | . . . . Martial Activations . | . . . . Shielding Activations . | . . . . Robots Disrupted . | . . . . Combat Hostiles . | . . . . Robots Corrupted . | . . . . Combat Hostiles . | . . . . Parts Fried . | . . . . Impact Corruptions . | . . . . Robots Melted . | . . . . Combat Hostiles . | . . . . Parts Melted 3 | 1 2 . . Heat Transferred 1020 | 211 259 125 425 Parts Sabotaged . | . . . . Parts Stolen . | . . . . Parts Stripped . | . . . . Power Chain Reactions . | . . . . Alert | -11 -10 -10 -9 ------- Run | Yrd Mat Min Mat Maximum Alert Level 1 | . . . 1 Low Security (%) 97 | 100 100 100 89 Level 1 2 | . . . 10 Level 2 . | . . . . Level 3 . | . . . . Level 4 . | . . . . Level 5 . | . . . . High Security . | . . . . Max Security . | . . . . Peak Influence 228 | 10 92 103 228 Initial 30 | . . 5 30 Average 51 | 1 33 27 137 Influence Increases 1133 | 15 272 245 601 Destroy 0b10 Robot/C 520 | . 220 100 200 Destroy 0b10 Robot/NC 65 | 15 10 10 30 Destroy Leader 112 | . 42 30 40 Disable Machine 15 | . . . 15 Destroy Structure 1 | . . . 1 Lose Combat Pursuer 420 | . . 105 315 Influence Decreases 968 | 15 258 180 515 Entered New Map 58 | . . 9 49 Time Decay 625 | 15 248 156 206 Search Patrol Dispatched 100 | . . . 100 Lost Part 185 | . 10 15 160 Squads Dispatched 5 | . 2 . 3 Investigation 2 | . 1 . 1 Extermination . | . . . . Reinforcement 3 | . 1 . 2 Assault . | . . . . Garrison . | . . . . Intercept . | . . . . Searches Triggered 1 | . . . 1 Construction Impeded . | . . . . Haulers Reinforced . | . . . . Active Scanning Responses . | . . . . Cargo Convoy Interrupts . | . . . . Stealth | -11 -10 -10 -9 --------- Run | Yrd Mat Min Mat Distress Signals 1 | . . . 1 Communications Jammed . | . . . . Distress Signals . | . . . . Times Spotted 79 | . 16 8 55 Peak Tracking Total 15 | . 3 3 15 Tactical Retreats 13 | . . 4 9 Traps | -11 -10 -10 -9 ------- Run | Yrd Mat Min Mat Traps Triggered 1 | . . . 1 Indirectly . | . . . . Trap Hack Attempts . | . . . . Triggered . | . . . . Disarmed . | . . . . Reprogrammed . | . . . . Reused . | . . . . Traps Extracted . | . . . . Installed . | . . . . Triggered . | . . . . Machines | -11 -10 -10 -9 ---------- Run | Yrd Mat Min Mat Machines Disabled 1 | . . . 1 Max in Single Turn 1 | . . . 1 Machines Repaired . | . . . . Machines Dismantled . | . . . . Machines Sabotaged . | . . . . Overloaded Fab Kills . | . . . . Hacking | -11 -10 -10 -9 --------- Run | Yrd Mat Min Mat Machines Accessed 1 | . 1 . . Terminals 1 | . 1 . . Fabricators . | . . . . Repair Stations . | . . . . Recycling Units . | . . . . Scanalyzers . | . . . . Garrison Access . | . . . . Total Hacks 2 | . 2 . . Successful . | . . . . Failed 2 | . 2 . . Catastrophic 1 | . 1 . . Database Lockouts . | . . . . Manual 2 | . 2 . . Terminals 2 | . 2 . . Fabricators . | . . . . Repair Stations . | . . . . Recycling Units . | . . . . Scanalyzers . | . . . . Garrison Access . | . . . . Terminal Hacks . | . . . . Fabricator Hacks . | . . . . Repair Station Hacks . | . . . . Recycling Unit Hacks . | . . . . Scanalyzer . | . . . . Garrison Access Hacks . | . . . . Unauthorized Hacks . | . . . . Terminals . | . . . . Fabricators . | . . . . Repair Stations . | . . . . Recycling Units . | . . . . Scanalyzers . | . . . . Garrison Access . | . . . . Data Cores Recovered . | . . . . Used . | . . . . Hacking Detections 1 | . 1 . . Full Trace Events 1 | . 1 . . Feedback Events . | . . . . Feedback Blocked . | . . . . Robot Schematics Acquired . | . . . . Robots Built . | . . . . Authchips . | . . . . Time . | . . . . Total Robot Build Rating . | . . . . Part Schematics Acquired . | . . . . Parts Built . | . . . . Authchips . | . . . . Time . | . . . . Total Part Build Rating . | . . . . Part Studies Acquired . | . . . . Parts Repaired . | . . . . Time . | . . . . Parts Recycled . | . . . . Recycled Matter . | . . . . Retrieved Matter . | . . . . Retrieved Components . | . . . . Parts Scanalyzed . | . . . . Part Schematics Acquired . | . . . . Parts Damaged . | . . . . Bothacking | -11 -10 -10 -9 ------------ Run | Yrd Mat Min Mat Used RIF Installer . | . . . . Robots Hacked . | . . . . Non-combat . | . . . . Combat . | . . . . Robot Hacks Applied . | . . . . Relay Couplers Released . | . . . . Fabnet Peak Effective % . | . . . . Robots Rewired . | . . . . Allies Hacked . | . . . . Hacks Repelled . | . . . . Allies | -11 -10 -10 -9 -------- Run | Yrd Mat Min Mat Total Allies . | . . . . Largest Group . | . . . . Highest-Rated Group . | . . . . Highest-Rated Ally . | . . . . Total Orders . | . . . . Ally Attacks . | . . . . Total Damage . | . . . . Kills . | . . . . Allies Corrupted . | . . . . Allies Melted . | . . . . Intel | -11 -10 -10 -9 ------- Run | Yrd Mat Min Mat Active Infowar (turns) . | . . . . Robot Analysis Total . | . . . . Derelict Logs Recovered 2 | . . 2 . Drone Launches . | . . . . Drone Recoveries . | . . . . Exploration | -11 -10 -10 -9 ------------- Run | Yrd Mat Min Mat Turns Passed 2023 | 150 728 708 437 Spaces Moved 1489 | 78 373 345 693 Core 29 | 9 . . 20 Treads 440 | 65 373 2 . Legs 70 | . . 70 . Wheels 4 | 4 . . . Hover . | . . . . Flight 946 | . . 273 673 Fastest Speed 31 | 50 160 117 31 Average Speed 92 | 143 160 118 37 Slowest Speed 200 | 160 160 190 200 Overloaded Moves . | . . . . Propulsion Burnouts . | . . . . Robots Hopped 11 | . . . 11 Potential Cave-ins . | . . . . Cave-ins Triggered . | . . . . Exploration Rate (%) 50 | 4 71 68 58 Regions Visited 3 Branch Regions 1 Pre-discovered Areas . | . . . . Known Exits Taken . | . . . . Unknown Exits Taken 3 | 1 1 1 . Scrap Searched 1 | . . 1 . Spaces Dug . | . . . . Terrain Destroyed . | . . . . Melee . | . . . . Projectile . | . . . . AOE . | . . . . Terrain Rammed . | . . . . Walls Destroyed . | . . . . Machines Disabled . | . . . . Actions | -11 -10 -10 -9 --------- Run | Yrd Mat Min Mat Total 1905 | 96 443 588 778 Wait 229 | . 18 193 18 Move 1466 | 77 372 344 673 Hop 9 | . . . 9 Pick Up 12 | 3 4 2 3 Fast Attach 20 | 6 3 2 9 Attach 3 | . . 1 2 Detach 2 | . 2 . . Swap 15 | 2 5 6 2 Drop 12 | . 4 4 4 Fire 126 | 8 34 29 55 Melee . | . . . . Ram 4 | . . 1 3 Kick . | . . . . Crush 1 | . 1 . . Escape Stasis . | . . . . Rewire 6 | . . 6 . Trap . | . . . . Miscellaneous . | . . . . Route ------- -11/Scrapyard -10/Materials (discovered 3 exits: *Mat x2 / [*Min]) -10/Mines -9/Materials (discovered 2 exits: *Mat x2) History --------- Turn | Location | Event 51 | -11/Scrapyard | Discovered new exit (range 16) 151 | -11/Scrapyard | Entered Materials 300 | -10/Materials | Build established: Mutant 420 | -10/Materials | Discovered new exit (range 16) 697 | -10/Materials | Discovered new exit (range 16) 849 | -10/Materials | Discovered new exit (range 16) 879 | -10/Materials | Entered Mines 1349 | -10/Mines | Core integrity fell below 50% 1430 | -10/Mines | Learned Materials garrison access intel 1580 | -10/Mines | Discovered new exit (range 7) 1587 | -10/Mines | Entered Materials 1587 | -9/Materials | Evolved 2 slots: Propulsion x2 1754 | -9/Materials | Lost 4 parts (1p2n1w) 1883 | -9/Materials | Discovered new exit (range 16) 1956 | -9/Materials | Discovered new exit (range 5) 1957 | -9/Materials | Identified exit to Materials 1969 | -9/Materials | Core integrity fell below 50% 1980 | -9/Materials | Lost 7 parts (2p4n1w) 1987 | -9/Materials | Search patrols dispatched 2016 | -9/Materials | Core integrity fell below 20% 2024 | -9/Materials | Destroyed by Y-45 Defender with Heavy Assault Rifle Last Messages --------------- M011. 01938_ O-16 Technician locks terminal. 01949_ Lgt. Ion Engine destroyed. 01952_ Acquired Adv. Visual Processing Unit. 01956_ EXIT=FOUND 01957_ EXIT=IDENTIFIED: MATERIALS 01973_ K-01 Serf cleans the Fusion Modulator. 01987_ ALERT: Heightened foreign activity detected, multiple search patrols dispatched. [Achievement: Suspicious] 01988_ Flight Unit destroyed. 01996_ Sml. Storage Unit destroyed. 02012_ Flight Unit destroyed. 02012_ Slammed into G-34 Mercenary. 02017_ Connecting with Terminal... 02017_ Current location identified: Materials 02017_ K-01 Serf cleans the Fusion Modulator. 02021_ C-30 ARC bursts open, deploying its payload. 02021_ S-10 Pest unfolds itself. 02024_ S-10 Pest suffers critical hit (Destroy). Map ----- +----------------------------------------------------+ | ???????????????????????????????? """ ?????# ## | | ??????????????????????????????? """ ###### ## | | ??????????????????????????????? """ + ## | | ?????????????????????????????# # + | | ?????????????????????????????## # ## | | ??????????????????????????????########### ## | | ?????????????????????????????????# """ + ## | | ?????????????????????????????????# "Y" #### ## | | ?????????????????????????????????# #??# ## | | ?????????????????????????????????# #??# ## | | ??????????????????????? ?????????# #??# ##+## | | ?????????????????????# ?????????# #??# #???? | | ?????????????????????# ?????????########??# #??T" | | ?????????????????????# ???????????????????# # | | ?????????????????????# ??????????????????# + "" | | ?????????????????????# ??????????????????# # "" | | ?????????????????????# ???????????"""""??# #??"" | | ?????????????????????# ??????????"""""""?# #???? | | ?????????????????????# ???????????"""""??# #???? | | ?????????????????????# ???????????"""""??# #???? | | ?????????????????????# ????????????"""???# #???? | | ????????????????????## ##?????????? ???#%#???? | | ????????????????????# ############/#####%###?? | | ????????????????????# s%s kT % #?? | | ????????????????????# Y ss g #?? | | ????????????????????# @ #?? | | ????????????????????# ########### ^ """ #?? | | ????????????????????###+###?????????# """ #?? | | ????????????????????????????????????# """ #?? | | ????????????????????????????????????# #?? | | ????????????????????????????????????# ## | | ????????????????????????????????????# """ / | | ?????????#########??????????????????# """ ## | | ???????? ]#??????????????????# """ #?? | | ????????""" #??????????????????# #?? | | ???????#""" #??????????????????# ### | | ???????#"S #??????????????????# """ ""# | | ##?????#""" """ #??????????######### """ T"# | | !##????# "" """ #??????????# # """ ""# | | !#????# """ #??????????# # ### | | #????# #????####### # #?? | | ###+######+########## # # """ ##? | | % # # """ T#? | | " """ # """ ### | | # """ # | | ###### ###/########## # """ # | | #?# # #???## ## """ # | | #?# # #????# ## """ # ########## | | #?# # #????# ## # #?? | | ### # #????# #######?## # | +----------------------------------------------------+ Best States ------------- Heat Dissipation 28 Energy Generation 10 Energy Capacity 250 Matter Stores 300 Matter Capacity 300 Sight Range 16 Terrain Scan Density 10 Evasion (%) 63 Recoil Reduction 2 Item Schematics ----------------- None Robot Schematics ------------------ None Fabricated ------------ Nothing Repaired ---------- Nothing Studied --------- None Alien Tech Used ----------------- None Achievements -------------- Suspicious Challenges ------------ None Game ------ Seed DimensionalZioniteSuite Manual? 0 Play Time 00:12:03 Cumulative 66.4 hours Start 2026.02.13 @ 15:32:56 End 2026.02.13 @ 15:48:02 Sessions 1 Manual Loads 0 Difficulty Rogue Special Mode None Game No. 142 Rogue 142 Adventurer 0 Explorer 0 Win Type - Total 0 Types 0/0/0/0/0/0/0/0/0/0 Lore% 45 Gallery% 34 Achievement% 32 Wizard Run 0 Options --------- Layout 0 ASCII 0 Keyboard 1 Movement Arrows Keybinds 0 Fullscreen 1 Font 18/Smallcaps Map View 76x50 Zoom Use 79% Tactical HUD 1 Map Filters NONE Filters NONE Steam 1 RUN: 1f92a1bb-30c7-4e2b-9d2e-b86642616a77